bitfinex-derivatives/quotes_SOLF0:USTF0_20220110
["timestamp","ask_amount","ask_price","bid_price","bid_amount"]
[1641830047740,3.54692117,132.67,132.62,4.26654428]
[1641830048140,3.54692117,132.67,132.6,4.26654428]
[1641830048941,11.0892525,132.67,132.53,1.883]
[1641830049141,27.66479,132.66,132.57,27.66479]
[1641830049342,35.66479,132.66,132.57,27.66479]
[1641830049543,3.12163455,132.65,132.57,27.66479]
[1641830050147,3.12163455,132.65,132.58,7.53891967]
[1641830050444,3.12163455,132.67,132.58,23.18725545]
[1641830050844,3.12163455,132.66,132.58,23.18725545]
[1641830051044,3.12163455,132.66,132.6,27.66479]
[1641830051245,3.12163455,132.65,132.6,27.66479]
[1641830051848,68.8526,132.69,132.61,23.18725545]
[1641830052147,2.69213162,132.68,132.61,23.18725545]
[1641830052647,2.69213162,132.68,132.61,4.26669565]
[1641830053146,27.66479,132.65,132.58,20.00026181]
[1641830053449,2.69213162,132.64,132.58,20.00026181]
[1641830054347,2.69213162,132.68,132.58,20.00026181]
[1641830055049,2.69213162,132.68,132.63,27.66479]
[1641830055853,2.69213162,132.71,132.64,4.26669565]
[1641830056250,2.69213162,132.71,132.65,11.80163895]
[1641830056450,7.53579503,132.78,132.65,11.80163895]
[1641830056650,80.35309503,132.78,132.65,11.80163895]
[1641830056851,4.26458346,132.77,132.66,1.883]
[1641830057653,4.26458346,132.77,132.72,27.66479]
[1641830057854,4.26458346,132.77,132.66,1.883]
[1641830058051,4.26458346,132.77,132.67,4.26440281]
[1641830058052,11.80094641,132.77,132.67,4.26440281]
[1641830058252,4.26458346,132.77,132.67,4.26440281]
[1641830058454,4.26458346,132.76,132.65,1.883]
[1641830058654,4.26458346,132.76,132.67,7.53380796]
[1641830059055,4.26458346,132.75,132.68,4.26440281]
[1641830059656,4.26458346,132.74,132.7,27.66479]
[1641830060057,4.26458346,132.73,132.71,4.26440281]
[1641830060258,27.66479,132.8,132.71,4.26440281]
[1641830061558,3.85783744,132.79,132.71,4.26440281]
[1641830063765,3.85783744,132.79,132.74,27.66479]
[1641830063966,3.85783744,132.79,132.74,35.1943435]
[1641830064166,3.744e-05,132.79,132.74,35.1943435]
[1641830064465,7.52813641,132.92,132.77,7.52813641]
[1641830064666,66.9628,132.91,132.77,7.52813641]
[1641830064867,66.9628,132.91,132.8,7.52643661]
[1641830065070,66.9628,132.91,132.81,1.881]
[1641830065368,68.2387,132.95,132.83,7.52445448]
[1641830065568,68.2387,132.95,132.86,7.52275634]
[1641830065771,68.2387,132.95,132.88,27.66479]
[1641830065971,27.66479,132.96,132.87,4.26038528]
[1641830066469,71.9823,132.97,132.87,4.26038528]
[1641830066673,72.1445,132.99,132.88,7.52190756]
[1641830066871,72.1445,132.99,132.87,4.26038528]
[1641830066872,7.52247339,133.02,132.89,1.879]
[1641830067071,7.5233223,133.0,132.87,6.13938528]
[1641830067271,7.52388835,132.99,132.9,4.26038528]
[1641830067774,7.52275634,133.01,132.87,4.26038528]
[1641830068174,69.2502,133.04,132.91,7.51992781]
[1641830068374,69.2502,133.04,133.0,27.66479]
[1641830068573,27.66479,133.09,133.0,27.66479]
[1641830068773,67.4685,133.1,133.0,27.66479]
[1641830068973,27.66479,133.11,133.03,7.51314801]
[1641830069574,73.0081,133.19,133.03,7.51314801]
[1641830069875,73.0081,133.19,133.06,7.51145497]
[1641830070173,73.0081,133.19,133.07,1.877]
[1641830070374,7.50976269,133.24,133.16,27.66479]
[1641830070774,27.66479,133.25,133.16,27.66479]
[1641830071374,27.66479,133.25,133.16,35.17060701]
[1641830071775,27.66479,133.25,133.14,27.66479]
[1641830071977,27.66479,133.25,133.15,1.875]
[1641830072175,35.17398877,133.25,133.11,1.875]
[1641830072475,27.66479,133.19,133.11,1.875]
[1641830072674,27.66479,133.19,133.1,1.877]
[1641830072874,27.66479,133.19,133.09,27.66479]
[1641830073275,7.50948072,133.25,133.1,7.50948072]
[1641830073476,30.03792288,133.28,133.13,7.50778933]
[1641830073676,7.50891684,133.26,133.11,9.38591684]
[1641830073878,7.50891684,133.26,133.11,7.50891684]
[1641830074176,7.51089079,133.22,133.09,27.66479]
[1641830074375,27.66479,133.18,133.09,27.66479]
[1641830074776,27.66479,133.18,133.04,7.51286578]
[1641830074977,27.66479,133.18,133.05,9.38901923]
[1641830075277,27.66479,133.18,133.05,13.64283587]
[1641830076378,27.66479,133.13,133.06,27.66479]
[1641830076578,27.66479,133.13,133.05,4.25381664]
[1641830076979,7.51738395,133.11,133.05,4.25381664]
[1641830077178,7.51851434,133.09,133.05,4.25381664]
[1641830077379,7.51766652,133.1,133.05,4.25381664]
[1641830078380,27.66479,133.07,132.98,27.66479]
[1641830078579,27.66479,133.09,132.98,27.66479]
[1641830078781,7.51766652,133.1,132.98,27.66479]
[1641830078981,7.51371253,133.17,133.02,7.51371253]
[1641830079180,7.51371253,133.17,133.03,1.877]
[1641830079780,7.51597144,133.13,133.03,1.877]
[1641830079982,7.51681888,133.12,132.98,27.66479]
[1641830080382,27.66479,133.07,132.98,27.66479]
[1641830081685,27.66479,133.09,132.98,27.66479]
[1641830081885,27.66479,133.09,132.99,1.879]
[1641830082684,27.66479,133.09,132.94,1.879]
[1641830082885,27.66479,133.09,132.92,1.879]
[1641830083084,7.52049334,133.05,132.9,9.39949334]
[1641830083784,7.52275634,133.01,132.9,1.879]
[1641830083985,7.52275634,133.01,132.89,69.2799]
[1641830084584,7.52275634,133.01,132.91,56.7887]
[1641830084585,27.66479,132.96,132.91,56.7887]
[1641830084784,7.52671986,132.94,132.91,56.7887]
[1641830085185,1.57845993,132.95,132.91,56.7887]
[1641830085886,1.57845993,132.95,132.91,49.8887]
[1641830086086,1.57845993,132.95,132.91,26.6887]
[1641830086388,27.66479,132.94,132.91,26.6887]
[1641830086593,1.57845993,132.95,132.91,26.6887]
[1641830086788,7.52021057,133.06,132.92,1.879]
[1641830086987,7.52021057,133.06,132.91,34.20891057]
[1641830087188,7.52021057,133.06,132.92,1.879]
[1641830087388,7.52021057,133.06,132.91,34.20891057]
[1641830088390,27.66479,132.98,132.91,34.20891057]
[1641830089393,27.66479,132.98,132.91,25.9887]
[1641830089597,27.66479,132.98,132.91,22.6887]
[1641830089796,1.26329829,132.97,132.91,21.9887]
[1641830090395,27.66479,132.95,132.91,21.9887]
[1641830091099,1.26329829,132.94,132.92,4.25909]
[1641830091898,1.26329829,132.97,132.92,4.25909]
[1641830093701,1.26329829,132.97,132.91,14.3887]
[1641830094403,1.26329829,132.97,132.92,4.25926381]
[1641830095302,1.26329829,133.0,132.92,4.25926381]
[1641830095703,1.26329829,132.99,132.92,4.25926381]
[1641830096104,1.26329829,132.98,132.92,4.25926381]
[1641830096505,28.92808829,132.98,132.92,4.25926381]
[1641830096706,1.26329829,132.97,132.92,4.25926381]
[1641830097606,1.26329829,132.96,132.91,14.3887]
[1641830098008,1.26329829,132.95,132.91,14.3887]
[1641830098407,1.26329829,132.94,132.91,14.3887]
[1641830098609,27.66479,132.93,132.91,14.3887]
[1641830130445,7.53352418,132.82,132.76,73.6135]
[1641830130643,0.85213107,132.85,132.76,73.6135]
[1641830130844,7.53522719,132.79,132.76,73.6135]
[1641830131045,7.53522719,132.79,132.76,62.1735]
[1641830131246,7.53636295,132.77,132.76,62.1735]
[1641830131446,7.53636295,132.77,132.76,32.9735]
[1641830131647,8.38849402,132.77,132.76,20.3135]
[1641830131846,8.38849402,132.77,132.72,151.13446747]
[1641830132047,7.53806724,132.74,132.72,96.41446747]
[1641830132246,7.53806724,132.74,132.72,86.79446747]
[1641830132448,7.53806724,132.74,132.72,76.91446747]
[1641830132647,0.85213107,132.73,132.72,76.91446747]
[1641830133049,8.39105074,132.73,132.72,76.91446747]
[1641830133249,8.39105074,132.73,132.72,65.53446747]
[1641830133448,8.39105074,132.73,132.72,61.71446747]
[1641830133649,8.39105074,132.73,132.72,9.55446747]
[1641830133849,8.39105074,132.73,132.72,4.65446747]
[1641830134049,8.0,132.72,132.51,1.883]
[1641830134250,8.0,132.72,132.49,7.54375377]
[1641830134448,8.0,132.72,132.52,24.90690299]
[1641830134649,7.54460749,132.62,132.52,19.59505188]
[1641830134849,7.54460749,132.62,132.52,4.26814889]
[1641830135048,0.85213107,132.71,132.53,4.26814889]
[1641830135249,7.54147813,132.68,132.53,11.80962702]
[1641830135448,0.85213107,132.61,132.53,11.80962702]
[1641830135652,0.85213107,132.61,132.54,1.885]
[1641830135949,0.85213107,132.67,132.54,6.15314889]
[1641830136249,8.0,132.7,132.54,6.15314889]
[1641830136449,8.0,132.7,132.61,7.53664695]
[1641830136651,8.0,132.7,132.56,30.15226896]
[1641830136851,4.26682999,132.69,132.57,9.42191967]
[1641830137051,4.26682999,132.69,132.57,1.883]
[1641830137251,4.26682999,132.69,132.58,4.26814889]
[1641830137651,4.26682999,132.7,132.59,4.26814889]
[1641830138252,4.26682999,132.7,132.6,4.26814889]
[1641830138651,4.26682999,132.7,132.61,4.26814889]
[1641830139055,4.26682999,132.7,132.62,4.26814889]
[1641830139254,7.54176251,132.67,132.62,4.26814889]
[1641830139456,7.54176251,132.67,132.52,7.54176251]
[1641830139755,7.54403832,132.63,132.5,1.885]
[1641830139955,7.54403832,132.63,132.49,1.885]
[1641830140158,7.54403832,132.63,132.53,3.71095961]
[1641830140557,4.26682999,132.62,132.5,3.71095961]
[1641830141160,4.26682999,132.62,132.51,7.54261578]
[1641830141363,4.26682999,132.62,132.55,13.57537241]
[1641830141560,72.51,132.88,132.56,1.885]
[1641830141762,7.54375377,132.64,132.51,9.42561578]
[1641830141960,7.54346924,132.64,132.57,3.71095961]
[1641830142361,4.26885489,132.63,132.52,3.71095961]
[1641830142761,12.26885489,132.63,132.52,3.71095961]
[1641830142962,7.54574609,132.6,132.5,3.71095961]
[1641830143363,4.26885489,132.59,132.46,3.71095961]
[1641830143562,4.26885489,132.59,132.46,11.25642101]
[1641830143762,7.5454614,132.61,132.46,7.5454614]
[1641830144163,4.26885489,132.6,132.47,3.71095961]
[1641830144864,4.26885489,132.6,132.49,7.54375377]
[1641830145067,4.26885489,132.6,132.48,1.885]
[1641830145265,4.26885489,132.6,132.53,7.54147813]
[1641830145473,7.54460749,132.62,132.51,1.885]
[1641830145768,7.54460749,132.62,132.49,5.59595961]
[1641830145967,4.26885489,132.61,132.52,3.71095961]
[1641830146466,4.26885489,132.61,132.5,3.71095961]
[1641830146965,4.26885489,132.61,132.49,3.71095961]
[1641830147168,4.26885489,132.61,132.51,3.71095961]
[1641830147666,4.26885489,132.61,132.48,3.71095961]
[1641830147967,4.26885489,132.61,132.48,1.73279257]
[1641830148167,4.26885489,132.81,132.49,1.886]
[1641830148371,4.26885489,132.81,132.4,1.885]
[1641830148868,20.09490325,132.8,132.34,1.885]
[1641830149067,7.54716981,132.57,132.42,7.54716981]
[1641830149468,28.09490325,132.8,132.33,72.51]
[1641830149668,7.54887899,132.54,132.39,7.54887899]
[1641830150471,15.54745462,132.56,132.41,7.54745462]
[1641830150670,7.54631551,132.58,132.43,7.54631551]
[1641830150870,4.27173876,132.55,132.44,1.885]
[1641830151074,4.27173876,132.55,132.44,7.54574609]
[1641830151472,4.27173876,132.57,132.45,3.27128877]
[1641830151674,4.27173876,132.57,132.45,5.15628877]
[1641830151874,4.27173876,132.58,132.45,5.15628877]
[1641830152273,4.27173876,132.58,132.47,7.54403832]
[1641830152473,4.27173876,132.58,132.48,1.885]
[1641830152674,4.27173876,132.61,132.48,5.15628877]
[1641830153077,11.81663087,132.61,132.49,3.27128877]
[1641830153274,4.27173876,132.61,132.49,10.8144735]
[1641830153473,4.27173876,132.6,132.49,7.54318473]
[1641830154075,4.27173876,132.63,132.5,3.27128877]
[1641830154374,22.98036526,132.63,132.51,3.27128877]
[1641830154876,22.98036526,132.63,132.52,3.27128877]
[1641830155477,7.54631551,132.58,132.53,3.27128877]
[1641830155885,4.27173876,132.57,132.43,7.54631551]
[1641830156479,22.98357996,132.57,132.44,2.49115183]
[1641830159787,7.54859407,132.54,132.44,2.49115183]
[1641830160087,22.98357996,132.53,132.4,2.49115183]
[1641830161186,4.27173876,132.53,132.41,1.887]
[1641830161589,4.27173876,132.53,132.42,2.49115183]
[1641830162388,4.27173876,132.53,132.41,8.53287053]
[1641830162588,4.27173876,132.53,132.41,2.49115183]
[1641830162789,7.54973387,132.52,132.41,2.49115183]
[1641830163088,7.54973387,132.52,132.42,2.49115183]
[1641830163290,4.27173876,132.51,132.42,2.49115183]
[1641830163489,7.55144421,132.49,132.42,2.49115183]
[1641830163690,7.55144421,132.49,132.38,2.49115183]
[1641830164391,4.27173876,132.48,132.38,6.04302927]
[1641830164591,4.27173876,132.48,132.39,9.43587899]
[1641830164891,4.27173876,132.48,132.39,4.37815183]
[1641830165093,4.27173876,132.48,132.39,2.49115183]
[1641830165292,7.55058895,132.51,132.4,2.49115183]
[1641830165693,4.27173876,132.5,132.37,4.37815183]
[1641830165994,7.55344059,132.46,132.37,2.49115183]
[1641830166192,7.55344059,132.46,132.38,2.49115183]
[1641830166795,4.27173876,132.45,132.32,2.49115183]
[1641830166995,4.27173876,132.45,132.32,4.37815183]
[1641830167595,4.27173876,132.45,132.33,2.49115183]
[1641830169399,7.27173876,132.45,132.33,2.49115183]
[1641830169599,7.27173876,132.45,132.32,2.49115183]
[1641830169999,4.27173876,132.44,132.32,2.49115183]
[1641830170199,4.27173876,132.44,132.33,1.887]
[1641830170400,7.27173876,132.44,132.34,7.55144421]
[1641830170600,7.27173876,132.44,132.36,7.5503039]
[1641830171003,3.0,132.44,132.37,2.49115183]
[1641830172504,4.27314023,132.43,132.37,2.49115183]
[1641830173002,3.0,132.43,132.37,2.49115183]
[1641830173204,3.0,132.43,132.38,1.887]
[1641830173605,3.0,132.43,132.39,2.49115183]
[1641830173809,3.0,132.43,132.4,1.887]
[1641830174006,3.0,132.43,132.39,2.49115183]
[1641830176715,3.0,132.43,132.37,2.49115183]
[1641830176911,3.0,132.43,132.37,4.37815183]
[1641830177414,3.0,132.43,132.38,2.49115183]
[1641830179413,4.27352768,132.42,132.38,2.49115183]
[1641830179813,7.27352768,132.42,132.36,2.49115183]
[1641830180213,3.0,132.42,132.36,2.49115183]
[1641830180615,3.0,132.42,132.37,1.887]
[1641830180816,3.0,132.42,132.36,4.37815183]
[1641830181315,3.0,132.42,132.37,2.49115183]
[1641830181516,3.0,132.42,132.38,1.887]
[1641830182319,3.0,132.42,132.39,2.49115183]
[1641830183120,3.0,132.42,132.37,2.49115183]
[1641830183921,3.0,132.42,132.36,2.49115183]
[1641830184520,3.0,132.42,132.34,2.49115183]
[1641830186224,3.0,132.42,132.35,1.887]
[1641830186423,3.0,132.42,132.34,2.49115183]
[1641830186623,3.0,132.42,132.36,2.49115183]
[1641830187124,3.0,132.42,132.34,2.49115183]
[1641830189329,4.2746827,132.41,132.34,2.49115183]
[1641830189929,7.2746827,132.41,132.34,2.49115183]
[1641830190334,3.0,132.41,132.34,2.49115183]
[1641830191235,3.0,132.41,132.34,4.37815183]
[1641830191738,3.0,132.41,132.35,2.49115183]
[1641830194346,3.0,132.41,132.34,2.49115183]
[1641830195043,7.55715095,132.39,132.34,2.49115183]
[1641830195243,7.55715095,132.39,132.32,2.49115183]
[1641830195244,7.55886466,132.36,132.32,2.49115183]
[1641830195848,4.27625587,132.35,132.26,2.49115183]
[1641830196246,4.27625587,132.35,132.24,2.49115183]
[1641830196446,7.27625587,132.35,132.24,2.49115183]
[1641830197052,4.27625587,132.34,132.24,2.49115183]
[1641830197346,4.27625587,132.34,132.24,10.04830278]
[1641830197545,4.27625587,132.34,132.25,1.889]
[1641830197546,3.0,132.34,132.25,1.889]
[1641830197746,3.0,132.34,132.27,7.55572346]
[1641830197946,3.0,132.34,132.28,1.889]
[1641830198647,3.0,132.34,132.29,2.49115183]
[1641830198847,3.0,132.34,132.3,1.889]
[1641830199447,3.0,132.34,132.31,2.49115183]
[1641830200249,3.0,132.34,132.3,7.55401118]
[1641830200448,3.0,132.34,132.31,7.93499472]
[1641830200850,7.55401118,132.45,132.31,10.42614655]
[1641830201151,4.2748949,132.44,132.32,2.49115183]
[1641830201351,4.2748949,132.44,132.33,1.887]
[1641830202152,4.2748949,132.44,132.34,2.49115183]
[1641830202953,4.2748949,132.44,132.33,2.49115183]
[1641830203154,4.2748949,132.44,132.34,1.887]
[1641830203852,4.2748949,132.44,132.35,2.49115183]
[1641830204052,4.2748949,132.44,132.36,1.887]
[1641830204756,4.2748949,132.44,132.37,2.49115183]
[1641830205653,4.2748949,132.44,132.35,2.49115183]
[1641830206055,4.2748949,132.44,132.33,2.49115183]
[1641830207756,7.55543803,132.42,132.33,2.49115183]
[1641830208356,4.2748949,132.41,132.32,2.49115183]
[1641830209761,4.2748949,132.41,132.32,4.37815183]
[1641830210157,4.2748949,132.41,132.33,2.49115183]
[1641830210358,4.2748949,132.41,132.34,1.887]
[1641830210658,4.2748949,132.44,132.34,7.93182848]
[1641830211158,4.2748949,132.44,132.35,2.49115183]
[1641830211359,4.2748949,132.44,132.36,1.887]
[1641830211560,4.2748949,132.44,132.35,2.49115183]
[1641830212662,4.2748949,132.44,132.35,4.37815183]
[1641830212961,4.2748949,132.44,132.4,27.66479]
[1641830213460,4.2748949,132.46,132.41,4.37815183]
[1641830213862,4.2748949,132.48,132.42,2.49115183]
[1641830214261,22.99312103,132.53,132.42,2.49115183]
[1641830214962,50.65791103,132.53,132.45,27.66479]
[1641830215366,50.65791103,132.53,132.46,1.885]
[1641830215566,31.9396849,132.53,132.46,4.37615183]
[1641830215862,4.2748949,132.52,132.46,4.37615183]
[1641830216163,4.2748949,132.52,132.47,2.49115183]
[1641830217063,4.2748949,132.54,132.47,30.15594183]
[1641830217566,4.2748949,132.54,132.48,2.49115183]
[1641830219270,4.2748949,132.54,132.49,1.885]
[1641830219668,4.2748949,132.6,132.49,1.885]
[1641830220069,4.2748949,132.6,132.5,2.49115183]
[1641830220272,22.98598963,132.62,132.51,1.885]
[1641830220670,22.98598963,132.62,132.52,2.49115183]
[1641830221071,27.66479,132.63,132.54,27.66479]
[1641830221570,4.2748949,132.62,132.55,2.49115183]
[1641830221772,7.54574609,132.59,132.55,2.49115183]
[1641830221971,7.54574609,132.59,132.53,1.885]
[1641830222171,7.54574609,132.59,132.45,1.885]
[1641830222673,4.2748949,132.58,132.46,2.49137419]
[1641830222875,4.2748949,132.58,132.47,1.885]
[1641830223075,4.2748949,132.58,132.54,27.66479]
[1641830223472,4.2748949,132.58,132.55,1.885]
[1641830223672,4.2748949,132.62,132.55,4.37637419]
[1641830224072,4.2748949,132.62,132.59,7.537215]
[1641830224273,4.2748949,132.62,132.6,1.885]
[1641830224472,4.2748949,132.62,132.6,4.37637419]
[1641830224972,4.2748949,132.62,132.61,2.49137419]
[1641830225574,4.2748949,132.64,132.61,2.49137419]
[1641830227374,4.2748949,132.64,132.6,4.37637419]
[1641830227575,7.53579503,132.77,132.62,7.53579503]
[1641830227775,7.53579503,132.77,132.63,1.883]
[1641830228375,7.53579503,132.77,132.64,6.03098197]
[1641830228575,7.53380796,132.8,132.65,9.41680796]
[1641830228775,4.26601742,132.76,132.65,12.80082258]
[1641830229076,31.93080742,132.76,132.67,27.66479]
[1641830229277,27.66479,132.76,132.67,27.66479]
[1641830230077,27.66479,132.76,132.68,3.38401462]
[1641830230277,4.26601742,132.75,132.68,3.38401462]
[1641830231881,4.26601742,132.77,132.68,3.38401462]
[1641830232682,7.5397723,132.7,132.62,1.883]
[1641830232882,7.5397723,132.7,132.58,1.883]
[1641830233081,27.66479,132.67,132.6,27.66479]
[1641830233482,31.93080742,132.69,132.6,27.66479]
[1641830233683,4.26601742,132.69,132.61,5.26800938]
[1641830233982,4.26601742,132.66,132.61,5.26800938]
[1641830234183,4.26601742,132.68,132.62,3.38500938]
[1641830234383,4.26601742,132.68,132.63,1.883]
[1641830234682,4.26601742,132.68,132.64,3.38500938]
[1641830234883,4.26601742,132.74,132.64,3.38500938]
[1641830235084,4.26601742,132.74,132.65,1.883]
[1641830235684,4.26601742,132.74,132.66,3.38500938]
[1641830236486,7.53863551,132.72,132.66,3.38500938]
[1641830236785,7.53863551,132.72,132.61,1.883]
[1641830236987,7.54005655,132.69,132.6,27.66479]
[1641830237186,27.66479,132.68,132.62,3.38513703]
[1641830237685,4.26601742,132.67,132.61,3.38513703]
[1641830238286,4.26601742,132.67,132.58,3.38513703]
[1641830239589,4.26601742,132.67,132.59,1.885]
[1641830240391,4.26601742,132.72,132.6,10.92178398]
[1641830240593,4.26601742,132.72,132.61,1.883]
[1641830240794,4.26601742,132.74,132.61,5.26813703]
[1641830241095,27.66479,132.71,132.61,5.26813703]
[1641830241395,27.66479,132.71,132.62,3.38513703]
[1641830241895,4.26601742,132.7,132.62,3.38513703]
[1641830242096,11.80578972,132.7,132.62,3.38513703]
[1641830242296,4.26601742,132.7,132.6,3.38513703]
[1641830243297,27.66479,132.67,132.6,3.38513703]
[1641830243899,4.26601742,132.66,132.6,3.38513703]
[1641830244298,4.26601742,132.66,132.58,3.38513703]
[1641830246100,4.26601742,132.66,132.58,10.92292017]
[1641830246302,4.26601742,132.66,132.59,7.91842576]
[1641830246502,4.26601742,132.66,132.61,7.53636295]
[1641830246706,4.26601742,132.66,132.62,1.883]
[1641830247203,27.66479,132.74,132.63,27.66479]
[1641830247404,27.66479,132.74,132.64,1.883]
[1641830247603,4.26601742,132.73,132.64,5.26813703]
[1641830248203,4.26601742,132.73,132.65,3.38513703]
[1641830248406,4.26601742,132.73,132.66,1.883]
[1641830249405,4.26601742,132.73,132.64,1.883]
[1641830249705,4.26601742,132.73,132.65,3.38401561]
[1641830250006,4.26601742,132.73,132.65,9.41457594]
[1641830250206,4.26601742,132.73,132.66,1.883]
[1641830250707,4.26601742,132.79,132.67,3.38401561]
[1641830250907,4.26601742,132.79,132.68,1.883]
[1641830251307,4.26601742,132.79,132.71,27.66479]
[1641830251508,4.26601742,132.79,132.7,1.883]
[1641830251708,4.26601742,132.79,132.68,1.883]
[1641830251908,4.26601742,132.79,132.66,1.883]
[1641830252108,4.26601742,132.79,132.69,3.38288848]
[1641830252610,4.26601742,132.79,132.67,3.38288848]
[1641830252811,4.26601742,132.79,132.68,1.883]
[1641830253110,4.26601742,132.79,132.69,3.38288848]
[1641830253311,4.26601742,132.79,132.69,31.04767848]
[1641830253812,4.26601742,132.79,132.7,3.38288848]
[1641830254622,4.26601742,132.79,132.69,27.66479]
[1641830254914,4.26601742,132.79,132.67,29.54779]
[1641830255114,4.26601742,132.79,132.67,27.66479]
[1641830255315,27.66479,132.75,132.66,1.883]
[1641830255515,7.537215,132.74,132.62,1.883]
[1641830255714,7.537215,132.74,132.61,7.53636295]
[1641830256317,4.26601742,132.73,132.62,3.38463809]
[1641830256516,4.26601742,132.73,132.62,12.80343312]
[1641830256718,4.26601742,132.73,132.63,6.03179302]
[1641830256916,4.26601742,132.73,132.64,1.883]
[1641830257119,4.26601742,132.74,132.64,5.26763809]
[1641830257717,4.26601742,132.74,132.65,3.38463809]
[1641830258817,4.26601742,132.74,132.64,3.38463809]
[1641830259118,4.26601742,132.74,132.64,9.4159399]
[1641830259317,4.26601742,132.74,132.69,27.66479]
[1641830259920,4.26601742,132.79,132.69,27.66479]
[1641830260121,4.26601742,132.79,132.7,1.883]
[1641830260621,4.26601742,132.79,132.71,7.53040401]
[1641830260820,4.26601742,132.79,132.72,1.883]
[1641830261020,4.26601742,132.81,132.72,5.26493008]
[1641830261322,4.26601742,132.81,132.75,27.66479]
[1641830261924,4.26601742,132.83,132.75,33.69080987]
[1641830262123,4.26601742,132.83,132.76,1.881]
[1641830262524,7.53097112,132.85,132.74,1.881]
[1641830262924,4.26601742,132.84,132.74,1.881]
[1641830263125,4.26601742,132.84,132.73,27.66479]
[1641830263325,4.26601742,132.84,132.75,27.66479]
[1641830263625,4.26601742,132.84,132.75,31.04594119]
[1641830263825,4.26601742,132.84,132.75,40.27094119]
[1641830264024,4.26601742,132.84,132.76,12.79000425]
[1641830264625,4.26601742,132.9,132.77,3.38115119]
[1641830264827,4.26601742,132.9,132.78,1.881]
[1641830265027,7.52983698,132.87,132.78,1.881]
[1641830265226,16.24683698,132.87,132.77,3.38115119]
[1641830265424,27.66479,132.85,132.77,3.38115119]
[1641830265628,27.66479,132.85,132.75,27.66479]
[1641830266025,4.26601742,132.84,132.75,27.66479]
[1641830267225,4.26601742,132.84,132.76,1.881]
[1641830267427,4.26601742,132.84,132.81,27.66479]
[1641830267626,4.26601742,132.84,132.81,35.59379]
[1641830267925,4.26601742,132.89,132.81,35.59379]
[1641830268626,4.26601742,132.89,132.81,7.329]
[1641830268826,4.26601742,132.89,132.79,27.66479]
[1641830269028,4.26601742,132.9,132.79,27.66479]
[1641830269226,4.26601742,132.9,132.8,1.881]
[1641830269428,4.26601742,132.9,132.81,33.68826782]
[1641830269629,4.26601742,132.9,132.82,1.881]
[1641830270429,4.26601742,132.92,132.82,1.881]
[1641830270930,7.52841978,132.9,132.78,6.02496391]
[1641830271130,7.52841978,132.9,132.77,1.881]
[1641830271330,27.66479,132.83,132.76,29.54579]
[1641830271534,33.83779,132.83,132.76,29.54579]
[1641830271730,6.173,132.83,132.76,27.66479]
[1641830271930,34.38876763,132.89,132.77,1.881]
[1641830271931,4.26601742,132.89,132.77,1.881]
[1641830272131,4.26601742,132.82,132.77,5.26145997]
[1641830272632,4.26601742,132.89,132.77,1.881]
[1641830272832,10.61101742,132.89,132.77,1.881]
[1641830273032,7.52983698,132.87,132.77,1.881]
[1641830273431,27.66479,132.85,132.78,27.66479]
[1641830273632,34.59279,132.85,132.76,29.54579]
[1641830273835,42.12404471,132.85,132.76,1.881]
[1641830274033,4.26601742,132.84,132.71,6.02806589]
[1641830274232,4.26601742,132.84,132.7,7.53125471]
[1641830274633,4.26601742,132.84,132.72,3.38178652]
[1641830274933,4.26601742,132.84,132.73,1.881]
[1641830275233,4.26601742,132.84,132.72,7.52983698]
[1641830275432,4.26601742,132.84,132.74,3.38178652]
[1641830276733,4.26601742,132.84,132.75,1.881]
[1641830277436,27.66479,132.81,132.71,1.881]
[1641830277635,33.66479,132.81,132.7,29.54579]
[1641830277838,4.26601742,132.8,132.72,3.38198116]
[1641830278135,4.26601742,132.8,132.71,3.38198116]
[1641830278335,4.26601742,132.8,132.71,5.26498116]
[1641830278735,4.26601742,132.83,132.71,5.26498116]
[1641830279137,4.26601742,132.83,132.72,3.38198116]
[1641830279335,4.26601742,132.83,132.73,1.881]
[1641830279535,4.26601742,132.83,132.75,27.66479]
[1641830280136,4.26601742,132.84,132.76,3.38198116]
[1641830280539,11.79755574,132.84,132.76,3.38198116]
[1641830280737,11.79755574,132.84,132.71,1.881]
[1641830281037,4.26601742,132.83,132.72,3.38225243]
[1641830281438,27.66479,132.76,132.72,3.38225243]
[1641830281638,35.94279,132.76,132.67,1.881]
[1641830282138,4.26601742,132.75,132.68,3.38322498]
[1641830283442,27.66479,132.72,132.67,1.883]